[Event "Titled Tuesday Blitz January 17 Early 2023"]
[White "Lauridsen, Jesper Morch"]
[Black "Jimenez, Joaquin"]
[WhiteFideId "1401890"]
[BlackFideId "109860"]
[WhiteElo "2309"]
[BlackElo "2195"]
[Result "0-1"]
[Round "07"]
[TimeControl "180+2"]
[Date "2023.01.17"]
[WhiteClock "0:00:03"]
[BlackClock "0:00:21"]

1. Nf3 {[%clk 0:02:59]}  Nf6 {[%clk 0:02:59]} 2. b3 {[%clk 0:02:59]}  g6 {[%clk 0:02:58]} 3. Bb2 {[%clk 0:02:59]}  Bg7 {[%clk 0:02:59]} 4. e3 {[%clk 0:02:59]}  O-O {[%clk 0:02:59]} 5. Be2 {[%clk 0:02:59]}  d6 {[%clk 0:02:56]} 6. c4 {[%clk 0:02:59]}  e5 {[%clk 0:02:55]} 7. d3 {[%clk 0:02:58]}  c5 {[%clk 0:02:51]} 8. Nc3 {[%clk 0:02:56]}  Nc6 {[%clk 0:02:49]} 9. O-O {[%clk 0:02:51]}  h6 {[%clk 0:02:49]} 10. a3 {[%clk 0:02:48]}  Be6 {[%clk 0:02:43]} 11. d4 {[%clk 0:02:43]}  exd4 {[%clk 0:02:39]} 12. exd4 {[%clk 0:02:44]}  cxd4 {[%clk 0:02:36]} 13. Nxd4 {[%clk 0:02:43]}  Nxd4 {[%clk 0:02:36]} 14. Qxd4 {[%clk 0:02:43]}  d5 {[%clk 0:02:26]} 15. Nxd5 {[%clk 0:01:57]}  Bxd5 {[%clk 0:02:25]} 16. cxd5 {[%clk 0:01:57]}  Qxd5 {[%clk 0:02:25]} 17. Qxd5 {[%clk 0:01:52]}  Nxd5 {[%clk 0:02:24]} 18. Bxg7 {[%clk 0:01:53]}  Kxg7 {[%clk 0:02:22]} 19. Bf3 {[%clk 0:01:53]}  Nf6 {[%clk 0:02:12]} 20. Rfc1 {[%clk 0:01:41]}  Rac8 {[%clk 0:02:02]} 21. Kf1 {[%clk 0:01:38]}  b6 {[%clk 0:02:01]} 22. a4 {[%clk 0:01:27]}  Rfd8 {[%clk 0:01:58]} 23. Rxc8 {[%clk 0:01:23]}  Rxc8 {[%clk 0:01:57]} 24. a5 {[%clk 0:01:21]}  Rc3 {[%clk 0:01:57]} 25. axb6 {[%clk 0:01:05]}  axb6 {[%clk 0:01:55]} 26. Rb1 {[%clk 0:01:04]}  g5 {[%clk 0:01:47]} 27. h3 {[%clk 0:01:02]}  h5 {[%clk 0:01:47]} 28. Ke2 {[%clk 0:00:59]}  g4 {[%clk 0:01:46]} 29. hxg4 {[%clk 0:00:58]}  hxg4 {[%clk 0:01:47]} 30. Kd2 {[%clk 0:00:51]}  Rc7 {[%clk 0:01:17]} 31. Ba8 {[%clk 0:00:50]}  Ra7 {[%clk 0:01:16]} 32. Bc6 {[%clk 0:00:46]}  Rc7 {[%clk 0:01:12]} 33. Rc1 {[%clk 0:00:41]}  Ra7 {[%clk 0:01:07]} 34. Rc2 {[%clk 0:00:37]}  Kg6 {[%clk 0:01:00]} 35. g3 {[%clk 0:00:33]}  Kf5 {[%clk 0:00:55]} 36. Bg2 {[%clk 0:00:24]}  Ke5 {[%clk 0:00:53]} 37. Rc6 {[%clk 0:00:20]}  Ra2+ {[%clk 0:00:52]} 38. Ke3 {[%clk 0:00:19]}  Nd7 {[%clk 0:00:42]} 39. Rc7 {[%clk 0:00:18]}  Nc5 {[%clk 0:00:40]} 40. Rxf7 {[%clk 0:00:16]}  Ra3 {[%clk 0:00:40]} 41. Re7+ {[%clk 0:00:14]}  Kd6 {[%clk 0:00:39]} 42. Re8 {[%clk 0:00:12]}  Rxb3+ {[%clk 0:00:38]} 43. Kf4 {[%clk 0:00:13]}  Rb2 {[%clk 0:00:37]} 44. Kxg4 {[%clk 0:00:11]}  Rxf2 {[%clk 0:00:37]} 45. Ba8 {[%clk 0:00:10]}  Ra2 {[%clk 0:00:36]} 46. Rd8+ {[%clk 0:00:10]}  Kc7 {[%clk 0:00:35]} 47. Rh8 {[%clk 0:00:09]}  b5 {[%clk 0:00:35]} 48. Bf3 {[%clk 0:00:09]}  b4 {[%clk 0:00:35]} 49. Rh6 {[%clk 0:00:08]}  Rc2 {[%clk 0:00:31]} 50. Rc6+ {[%clk 0:00:07]}  Kd7 {[%clk 0:00:31]} 51. Be4 {[%clk 0:00:07]}  Rc4 {[%clk 0:00:28]} 52. Kf5 {[%clk 0:00:05]}  Nxe4 {[%clk 0:00:20]} 53. Rxc4 {[%clk 0:00:04]}  Nd6+ {[%clk 0:00:21]} 54. Ke5 {[%clk 0:00:03]}  Nxc4+ {[%clk 0:00:21]} 55. Kd4 {[%clk 0:00:03]}  b3 {[%clk 0:00:21]} 56. Kc3 {[%clk 0:00:03]}  b2 {[%clk 0:00:21]} 57. Kc2 {[%clk 0:00:03]}  Ke6 {[%clk 0:00:21]} 0-1


[Site "https://www.chess.com"]

[Event "Titled Tuesday Blitz January 17 Early 2023"]
[White "Tokhirjonova, Gulrukhbegim"]
[Black "Zemlyanskii, Ivan"]
[WhiteFideId "14203626"]
[BlackFideId "24249971"]
[WhiteElo "2340"]
[BlackElo "2300"]
[Result "0-1"]
[Round "07"]
[TimeControl "180+2"]
[Date "2023.01.17"]
[WhiteClock "0:02:23"]
[BlackClock "0:02:21"]

1. e4 {[%clk 0:03:00]}  c5 {[%clk 0:03:00]} 2. Nf3 {[%clk 0:02:59]}  e6 {[%clk 0:02:56]} 3. d4 {[%clk 0:02:59]}  cxd4 {[%clk 0:02:57]} 4. Nxd4 {[%clk 0:02:59]}  Nf6 {[%clk 0:02:58]} 5. Nc3 {[%clk 0:02:59]}  Nc6 {[%clk 0:02:59]} 6. Nxc6 {[%clk 0:02:56]}  bxc6 {[%clk 0:03:00]} 7. e5 {[%clk 0:02:57]}  Nd5 {[%clk 0:03:00]} 8. Ne4 {[%clk 0:02:57]}  Qc7 {[%clk 0:03:01]} 9. f4 {[%clk 0:02:57]}  Rb8 {[%clk 0:03:00]} 10. c4 {[%clk 0:02:52]}  Bb4+ {[%clk 0:03:00]} 11. Ke2 {[%clk 0:02:50]}  O-O {[%clk 0:03:00]} 12. cxd5 {[%clk 0:02:45]}  cxd5 {[%clk 0:03:01]} 13. Nf2 {[%clk 0:02:45]}  d6 {[%clk 0:02:58]} 14. Nd3 {[%clk 0:02:44]}  dxe5 {[%clk 0:02:56]} 15. fxe5 {[%clk 0:02:43]}  f6 {[%clk 0:02:52]} 16. Be3 {[%clk 0:02:32]}  fxe5 {[%clk 0:02:43]} 17. Rc1 {[%clk 0:02:32]}  Qf7 {[%clk 0:02:30]} 18. Nxe5 {[%clk 0:02:23]}  Ba6+ {[%clk 0:02:23]} 19. Nd3 {[%clk 0:02:23]}  Qh5+ {[%clk 0:02:21]} 0-1


[Site "https://www.chess.com"]

[Event "Titled Tuesday Blitz January 17 Early 2023"]
[White "Rodrigues, Leonardo De Miranda"]
[Black "Makhnev, Denis"]
[WhiteFideId "2108658"]
[BlackFideId "13707647"]
[WhiteElo "2112"]
[BlackElo "2483"]
[Result "0-1"]
[Round "07"]
[TimeControl "180+2"]
[Date "2023.01.17"]
[WhiteClock "0:00:02"]
[BlackClock "0:00:20"]

1. e4 {[%clk 0:02:59]}  c6 {[%clk 0:02:59]} 2. d4 {[%clk 0:02:59]}  d5 {[%clk 0:02:56]} 3. e5 {[%clk 0:02:59]}  Bf5 {[%clk 0:02:55]} 4. Nc3 {[%clk 0:02:59]}  e6 {[%clk 0:02:54]} 5. g4 {[%clk 0:02:59]}  Bg6 {[%clk 0:02:54]} 6. Nge2 {[%clk 0:02:57]}  c5 {[%clk 0:02:51]} 7. Be3 {[%clk 0:02:53]}  Nc6 {[%clk 0:02:45]} 8. h4 {[%clk 0:02:49]}  h5 {[%clk 0:02:38]} 9. Nf4 {[%clk 0:02:49]}  Bh7 {[%clk 0:02:38]} 10. Nxh5 {[%clk 0:02:47]}  cxd4 {[%clk 0:02:37]} 11. Bxd4 {[%clk 0:02:47]}  Bxc2 {[%clk 0:02:29]} 12. Qd2 {[%clk 0:02:34]}  Bg6 {[%clk 0:02:20]} 13. Nf4 {[%clk 0:02:29]}  Rxh4 {[%clk 0:02:19]} 14. Rxh4 {[%clk 0:02:27]}  Qxh4 {[%clk 0:02:20]} 15. Nxg6 {[%clk 0:02:27]}  fxg6 {[%clk 0:02:20]} 16. O-O-O {[%clk 0:01:55]}  Qxg4 {[%clk 0:02:14]} 17. f4 {[%clk 0:01:46]}  Bb4 {[%clk 0:02:08]} 18. Kb1 {[%clk 0:01:44]}  Nge7 {[%clk 0:02:05]} 19. Rc1 {[%clk 0:01:28]}  g5 {[%clk 0:01:51]} 20. Qh2 {[%clk 0:01:03]}  Qf5+ {[%clk 0:01:36]} 21. Ka1 {[%clk 0:01:01]}  Nxd4 {[%clk 0:01:35]} 22. Nb5 {[%clk 0:00:48]}  Nxb5 {[%clk 0:01:24]} 23. Bxb5+ {[%clk 0:00:49]}  Kf7 {[%clk 0:01:21]} 24. fxg5 {[%clk 0:00:43]}  Qxg5 {[%clk 0:01:16]} 25. Rf1+ {[%clk 0:00:25]}  Nf5 {[%clk 0:01:14]} 26. a3 {[%clk 0:00:16]}  Bc5 {[%clk 0:01:08]} 27. Qc2 {[%clk 0:00:15]}  Rc8 {[%clk 0:01:03]} 28. Bd3 {[%clk 0:00:14]}  g6 {[%clk 0:00:58]} 29. Ka2 {[%clk 0:00:12]}  Rc7 {[%clk 0:00:53]} 30. b4 {[%clk 0:00:08]}  Bb6 {[%clk 0:00:51]} 31. Qh2 {[%clk 0:00:08]}  Kg7 {[%clk 0:00:40]} 32. Rh1 {[%clk 0:00:07]}  Qh6 {[%clk 0:00:38]} 33. Qg2 {[%clk 0:00:04]}  Qe3 {[%clk 0:00:36]} 34. Qh2 {[%clk 0:00:04]}  Nh6 {[%clk 0:00:29]} 35. Bb1 {[%clk 0:00:02]}  Rc3 {[%clk 0:00:20]} 0-1


[Site "https://www.chess.com"]

[Event "Titled Tuesday Blitz January 17 Early 2023"]
[White "Topalov, Aleksandar"]
[Black "Sielecki, Christof"]
[WhiteFideId "925659"]
[BlackFideId "4620437"]
[WhiteElo "2233"]
[BlackElo "2419"]
[Result "0-1"]
[Round "07"]
[TimeControl "180+2"]
[Date "2023.01.17"]
[WhiteClock "0:00:11"]
[BlackClock "0:01:00"]

1. b3 {[%clk 0:03:00]}  d5 {[%clk 0:02:54]} 2. Bb2 {[%clk 0:03:00]}  c5 {[%clk 0:02:54]} 3. e3 {[%clk 0:03:00]}  Nf6 {[%clk 0:02:53]} 4. f4 {[%clk 0:02:59]}  g6 {[%clk 0:02:53]} 5. Nf3 {[%clk 0:02:59]}  Bg7 {[%clk 0:02:54]} 6. Bb5+ {[%clk 0:02:58]}  Nbd7 {[%clk 0:02:53]} 7. O-O {[%clk 0:02:57]}  O-O {[%clk 0:02:52]} 8. d3 {[%clk 0:02:57]}  Nb6 {[%clk 0:02:45]} 9. d4 {[%clk 0:02:26]}  c4 {[%clk 0:02:42]} 10. bxc4 {[%clk 0:02:20]}  a6 {[%clk 0:02:20]} 11. c5 {[%clk 0:02:20]}  axb5 {[%clk 0:02:20]} 12. cxb6 {[%clk 0:02:20]}  Qxb6 {[%clk 0:02:18]} 13. Nbd2 {[%clk 0:02:11]}  Bg4 {[%clk 0:02:13]} 14. Bc3 {[%clk 0:01:56]}  Rfc8 {[%clk 0:02:06]} 15. Bb4 {[%clk 0:01:56]}  e6 {[%clk 0:01:57]} 16. c3 {[%clk 0:01:55]}  Ne4 {[%clk 0:01:55]} 17. Nxe4 {[%clk 0:01:49]}  dxe4 {[%clk 0:01:54]} 18. h3 {[%clk 0:01:49]}  Bxf3 {[%clk 0:01:49]} 19. gxf3 {[%clk 0:01:49]}  exf3 {[%clk 0:01:48]} 20. Qxf3 {[%clk 0:01:49]}  Bf8 {[%clk 0:01:45]} 21. Rfc1 {[%clk 0:00:27]}  Bxb4 {[%clk 0:01:39]} 22. cxb4 {[%clk 0:00:28]}  Rc4 {[%clk 0:01:39]} 23. Rxc4 {[%clk 0:00:22]}  bxc4 {[%clk 0:01:40]} 24. a3 {[%clk 0:00:23]}  c3 {[%clk 0:01:34]} 25. Qe4 {[%clk 0:00:19]}  Qc7 {[%clk 0:01:22]} 26. Qc2 {[%clk 0:00:19]}  Qc4 {[%clk 0:01:18]} 27. Kf2 {[%clk 0:00:17]}  b5 {[%clk 0:01:18]} 28. Ke1 {[%clk 0:00:16]}  Kg7 {[%clk 0:01:15]} 29. Kf2 {[%clk 0:00:14]}  f6 {[%clk 0:01:13]} 30. Ke1 {[%clk 0:00:12]}  e5 {[%clk 0:01:13]} 31. fxe5 {[%clk 0:00:12]}  fxe5 {[%clk 0:01:13]} 32. Qe4 {[%clk 0:00:12]}  Rf8 {[%clk 0:01:00]} 33. Qxe5+ {[%clk 0:00:11]}  Kg8 {[%clk 0:01:00]} 0-1


[Site "https://www.chess.com"]

[Event "Titled Tuesday Blitz January 17 Early 2023"]
[White "Hajiyev, Kanan"]
[Black "Garmash, Aliona"]
[WhiteFideId "13404148"]
[BlackFideId "34127620"]
[WhiteElo "2197"]
[BlackElo "2039"]
[Result "1-0"]
[Round "07"]
[TimeControl "180+2"]
[Date "2023.01.17"]
[WhiteClock "0:00:39"]
[BlackClock "0:00:01"]

1. d4 {[%clk 0:03:00]}  d5 {[%clk 0:02:57]} 2. c4 {[%clk 0:02:59]}  c6 {[%clk 0:02:56]} 3. cxd5 {[%clk 0:02:57]}  cxd5 {[%clk 0:02:56]} 4. Nc3 {[%clk 0:02:58]}  Nf6 {[%clk 0:02:56]} 5. Nf3 {[%clk 0:02:58]}  Nc6 {[%clk 0:02:56]} 6. Bg5 {[%clk 0:02:59]}  Ne4 {[%clk 0:02:46]} 7. Bf4 {[%clk 0:02:57]}  Nxc3 {[%clk 0:02:42]} 8. bxc3 {[%clk 0:02:58]}  Bf5 {[%clk 0:02:38]} 9. e3 {[%clk 0:02:58]}  e6 {[%clk 0:02:38]} 10. Qb3 {[%clk 0:02:57]}  Qa5 {[%clk 0:01:51]} 11. Be2 {[%clk 0:02:44]}  Qa3 {[%clk 0:01:18]} 12. O-O {[%clk 0:02:37]}  Qxb3 {[%clk 0:01:18]} 13. axb3 {[%clk 0:02:38]}  Be7 {[%clk 0:01:17]} 14. b4 {[%clk 0:02:19]}  O-O {[%clk 0:01:05]} 15. b5 {[%clk 0:02:19]}  Nb8 {[%clk 0:00:59]} 16. Ra2 {[%clk 0:02:15]}  Nd7 {[%clk 0:00:57]} 17. Rfa1 {[%clk 0:02:11]}  Rfc8 {[%clk 0:00:47]} 18. Rxa7 {[%clk 0:02:07]}  Rxa7 {[%clk 0:00:45]} 19. Rxa7 {[%clk 0:02:08]}  Rxc3 {[%clk 0:00:39]} 20. g4 {[%clk 0:01:49]}  Bxg4 {[%clk 0:00:23]} 21. Rxb7 {[%clk 0:01:46]}  Bh3 {[%clk 0:00:18]} 22. e4 {[%clk 0:01:36]}  e5 {[%clk 0:00:15]} 23. Bd2 {[%clk 0:01:34]}  Rc2 {[%clk 0:00:14]} 24. Bd3 {[%clk 0:01:17]}  Ra2 {[%clk 0:00:13]} 25. exd5 {[%clk 0:01:10]}  exd4 {[%clk 0:00:10]} 26. Bf1 {[%clk 0:00:55]}  Ra1 {[%clk 0:00:09]} 27. Ne1 {[%clk 0:00:55]}  Bf5 {[%clk 0:00:04]} 28. f3 {[%clk 0:00:47]}  h5 {[%clk 0:00:01]} 29. Bd3 {[%clk 0:00:39]} 1-0


[Site "https://www.chess.com"]

[Event "Titled Tuesday Blitz January 17 Early 2023"]
[White "Ortega Ruiz, Jose Miguel"]
[Black "Zaichenko, Daria"]
[WhiteFideId "2209713"]
[BlackFideId "4197453"]
[WhiteElo "2351"]
[BlackElo "2104"]
[Result "1-0"]
[Round "07"]
[TimeControl "180+2"]
[Date "2023.01.17"]
[WhiteClock "0:00:47"]
[BlackClock "0:00:01"]

1. Nf3 {[%clk 0:03:00]}  Nf6 {[%clk 0:02:58]} 2. e3 {[%clk 0:02:59]}  d5 {[%clk 0:02:58]} 3. d4 {[%clk 0:03:00]}  e6 {[%clk 0:02:58]} 4. c4 {[%clk 0:03:01]}  c5 {[%clk 0:02:56]} 5. Nc3 {[%clk 0:03:02]}  Nc6 {[%clk 0:02:55]} 6. cxd5 {[%clk 0:03:02]}  exd5 {[%clk 0:02:54]} 7. Bb5 {[%clk 0:03:03]}  cxd4 {[%clk 0:02:52]} 8. Nxd4 {[%clk 0:03:03]}  Bd7 {[%clk 0:02:50]} 9. O-O {[%clk 0:03:04]}  Bc5 {[%clk 0:02:45]} 10. Nb3 {[%clk 0:03:00]}  Be7 {[%clk 0:02:38]} 11. Nxd5 {[%clk 0:02:59]}  Nxd5 {[%clk 0:02:32]} 12. Qxd5 {[%clk 0:03:00]}  O-O {[%clk 0:02:31]} 13. e4 {[%clk 0:03:01]}  Qc7 {[%clk 0:02:28]} 14. Nc5 {[%clk 0:02:56]}  Rad8 {[%clk 0:02:15]} 15. Nxd7 {[%clk 0:02:55]}  Rxd7 {[%clk 0:02:09]} 16. Qh5 {[%clk 0:02:48]}  Rd4 {[%clk 0:02:00]} 17. Be3 {[%clk 0:02:47]}  Rxe4 {[%clk 0:01:56]} 18. g3 {[%clk 0:02:46]}  Re5 {[%clk 0:01:42]} 19. Qe2 {[%clk 0:02:41]}  Nd4 {[%clk 0:01:41]} 20. Qc4 {[%clk 0:02:41]}  Nxb5 {[%clk 0:01:39]} 21. Qa4 {[%clk 0:02:30]}  a6 {[%clk 0:01:33]} 22. Bf4 {[%clk 0:02:30]}  Bd6 {[%clk 0:01:27]} 23. Rac1 {[%clk 0:02:29]}  Qe7 {[%clk 0:01:23]} 24. Bxe5 {[%clk 0:02:29]}  Qxe5 {[%clk 0:01:23]} 25. Rb1 {[%clk 0:02:10]}  Nd4 {[%clk 0:01:22]} 26. Qd1 {[%clk 0:02:09]}  Bc5 {[%clk 0:00:46]} 27. b4 {[%clk 0:02:06]}  Ba7 {[%clk 0:00:26]} 28. Kg2 {[%clk 0:01:57]}  f5 {[%clk 0:00:22]} 29. f4 {[%clk 0:01:38]}  Qe4+ {[%clk 0:00:21]} 30. Kh3 {[%clk 0:01:36]}  g5 {[%clk 0:00:18]} 31. fxg5 {[%clk 0:01:27]}  f4 {[%clk 0:00:17]} 32. Qg4 {[%clk 0:01:25]}  Qg6 {[%clk 0:00:12]} 33. gxf4 {[%clk 0:01:24]}  Nf5 {[%clk 0:00:12]} 34. Qf3 {[%clk 0:01:03]}  Re8 {[%clk 0:00:11]} 35. Rfe1 {[%clk 0:01:03]}  Be3 {[%clk 0:00:09]} 36. Rb3 {[%clk 0:00:58]}  Qe6 {[%clk 0:00:06]} 37. Qg4 {[%clk 0:00:56]}  Qg6 {[%clk 0:00:02]} 38. Kg2 {[%clk 0:00:52]}  h5 {[%clk 0:00:02]} 39. Qh3 {[%clk 0:00:49]}  Qe6 {[%clk 0:00:01]} 40. Qxh5 {[%clk 0:00:47]} 1-0


[Site "https://www.chess.com"]

[Event "Titled Tuesday Blitz January 17 Early 2023"]
[White "Krstulovic, Alex"]
[Black "Bashirli, Saadat"]
[WhiteFideId "760056"]
[BlackFideId "13429990"]
[WhiteElo "2428"]
[BlackElo "1571"]
[Result "1-0"]
[Round "07"]
[TimeControl "180+2"]
[Date "2023.01.17"]
[WhiteClock "0:00:47"]
[BlackClock "0:00:31"]

1. e4 {[%clk 0:03:00]}  e6 {[%clk 0:02:54]} 2. d4 {[%clk 0:02:56]}  d5 {[%clk 0:02:54]} 3. e5 {[%clk 0:02:57]}  c5 {[%clk 0:02:54]} 4. c3 {[%clk 0:02:57]}  Nc6 {[%clk 0:02:51]} 5. Nf3 {[%clk 0:02:56]}  Qb6 {[%clk 0:02:51]} 6. Be2 {[%clk 0:02:55]}  Nge7 {[%clk 0:02:46]} 7. Na3 {[%clk 0:02:53]}  Nf5 {[%clk 0:02:45]} 8. Nc2 {[%clk 0:02:53]}  Be7 {[%clk 0:02:42]} 9. g4 {[%clk 0:02:51]}  Nh4 {[%clk 0:02:41]} 10. Nxh4 {[%clk 0:02:51]}  Bxh4 {[%clk 0:02:42]} 11. O-O {[%clk 0:02:52]}  Be7 {[%clk 0:02:41]} 12. f4 {[%clk 0:02:49]}  O-O {[%clk 0:02:38]} 13. f5 {[%clk 0:02:43]}  exf5 {[%clk 0:02:38]} 14. gxf5 {[%clk 0:02:43]}  cxd4 {[%clk 0:02:39]} 15. f6 {[%clk 0:02:43]}  dxc3+ {[%clk 0:02:37]} 16. Kh1 {[%clk 0:02:40]}  Bc5 {[%clk 0:02:25]} 17. Bd3 {[%clk 0:02:33]}  Nxe5 {[%clk 0:02:14]} 18. Bxh7+ {[%clk 0:02:14]}  Kxh7 {[%clk 0:02:10]} 19. Qh5+ {[%clk 0:02:14]}  Kg8 {[%clk 0:02:11]} 20. fxg7 {[%clk 0:02:07]}  Ng6 {[%clk 0:02:03]} 21. gxf8=Q+ {[%clk 0:02:05]}  Bxf8 {[%clk 0:02:03]} 22. bxc3 {[%clk 0:01:56]}  Be6 {[%clk 0:01:46]} 23. Nd4 {[%clk 0:01:54]}  Rc8 {[%clk 0:01:38]} 24. Bh6 {[%clk 0:01:47]}  Bg7 {[%clk 0:01:16]} 25. Bxg7 {[%clk 0:01:44]}  Kxg7 {[%clk 0:01:17]} 26. Rae1 {[%clk 0:01:39]}  Rxc3 {[%clk 0:01:11]} 27. Nxe6+ {[%clk 0:01:30]}  fxe6 {[%clk 0:01:09]} 28. Rg1 {[%clk 0:01:28]}  e5 {[%clk 0:01:09]} 29. Qxe5+ {[%clk 0:01:22]}  Qf6 {[%clk 0:01:08]} 30. Qxd5 {[%clk 0:01:06]}  Rc6 {[%clk 0:00:47]} 31. Ref1 {[%clk 0:01:00]}  Qh4 {[%clk 0:00:42]} 32. Rf7+ {[%clk 0:00:49]}  Kh6 {[%clk 0:00:38]} 33. Qd2+ {[%clk 0:00:48]}  Kh5 {[%clk 0:00:31]} 34. Rh7# {[%clk 0:00:47]} 1-0


[Site "https://www.chess.com"]

[Event "Titled Tuesday Blitz January 17 Early 2023"]
[White "Zherebtsova, Alexandra"]
[Black "Jenkins, Drake"]
[WhiteFideId "24129518"]
[BlackFideId "2022397"]
[WhiteElo "2155"]
[BlackElo "2130"]
[Result "1-0"]
[Round "07"]
[TimeControl "180+2"]
[Date "2023.01.17"]
[WhiteClock "0:00:16"]
[BlackClock "0:00:01"]

1. d4 {[%clk 0:02:56]}  Nf6 {[%clk 0:02:58]} 2. Nf3 {[%clk 0:02:56]}  c5 {[%clk 0:02:59]} 3. d5 {[%clk 0:02:56]}  b5 {[%clk 0:02:59]} 4. Bg5 {[%clk 0:02:51]}  d6 {[%clk 0:02:59]} 5. Bxf6 {[%clk 0:02:46]}  exf6 {[%clk 0:02:59]} 6. e4 {[%clk 0:02:46]}  a6 {[%clk 0:02:58]} 7. a4 {[%clk 0:02:45]}  b4 {[%clk 0:02:56]} 8. Bd3 {[%clk 0:02:43]}  f5 {[%clk 0:02:50]} 9. exf5 {[%clk 0:02:37]}  Qf6 {[%clk 0:02:49]} 10. Nbd2 {[%clk 0:02:26]}  Bxf5 {[%clk 0:02:45]} 11. Bxf5 {[%clk 0:02:20]}  Qxf5 {[%clk 0:02:45]} 12. Qe2+ {[%clk 0:02:06]}  Be7 {[%clk 0:02:45]} 13. Nc4 {[%clk 0:02:00]}  Kd8 {[%clk 0:01:40]} 14. O-O {[%clk 0:01:56]}  Re8 {[%clk 0:01:19]} 15. Rfe1 {[%clk 0:01:53]}  Qxd5 {[%clk 0:01:03]} 16. Nb6 {[%clk 0:01:41]}  Qc6 {[%clk 0:01:01]} 17. Nxa8 {[%clk 0:01:40]}  Qxa8 {[%clk 0:01:01]} 18. Rad1 {[%clk 0:01:29]}  Qc6 {[%clk 0:01:01]} 19. Ne5 {[%clk 0:01:26]}  Qxa4 {[%clk 0:00:57]} 20. Nxf7+ {[%clk 0:01:24]}  Kc7 {[%clk 0:00:51]} 21. Nxd6 {[%clk 0:01:16]}  Bxd6 {[%clk 0:00:48]} 22. Qxe8 {[%clk 0:01:14]}  Qxe8 {[%clk 0:00:48]} 23. Rxe8 {[%clk 0:01:15]}  Nc6 {[%clk 0:00:47]} 24. Rg8 {[%clk 0:01:08]}  Be5 {[%clk 0:00:46]} 25. b3 {[%clk 0:01:01]}  Nd4 {[%clk 0:00:41]} 26. Rd2 {[%clk 0:00:59]}  h6 {[%clk 0:00:29]} 27. Kf1 {[%clk 0:00:55]}  Bf6 {[%clk 0:00:17]} 28. Rxd4 {[%clk 0:00:51]}  Bxd4 {[%clk 0:00:14]} 29. Ke2 {[%clk 0:00:50]}  Kb6 {[%clk 0:00:12]} 30. f4 {[%clk 0:00:48]}  Kb5 {[%clk 0:00:11]} 31. Rb8+ {[%clk 0:00:47]}  Kc6 {[%clk 0:00:11]} 32. Kd3 {[%clk 0:00:46]}  a5 {[%clk 0:00:10]} 33. g4 {[%clk 0:00:39]}  Bg1 {[%clk 0:00:09]} 34. h3 {[%clk 0:00:36]}  Bh2 {[%clk 0:00:09]} 35. Rf8 {[%clk 0:00:33]}  Kb5 {[%clk 0:00:06]} 36. Rb8+ {[%clk 0:00:18]}  Kc6 {[%clk 0:00:05]} 37. Ra8 {[%clk 0:00:18]}  Bxf4 {[%clk 0:00:04]} 38. Rxa5 {[%clk 0:00:18]}  Be5 {[%clk 0:00:04]} 39. Ra7 {[%clk 0:00:18]}  Bf6 {[%clk 0:00:03]} 40. Ke4 {[%clk 0:00:18]}  Bd4 {[%clk 0:00:03]} 41. Kf5 {[%clk 0:00:17]}  Kb6 {[%clk 0:00:03]} 42. Rd7 {[%clk 0:00:17]}  Kc6 {[%clk 0:00:03]} 43. Rf7 {[%clk 0:00:17]}  Kb5 {[%clk 0:00:01]} 44. h4 {[%clk 0:00:16]}  c4 {[%clk 0:00:01]} 45. bxc4+ {[%clk 0:00:15]}  Kxc4 {[%clk 0:00:01]} 46. Rc7+ {[%clk 0:00:16]} 1-0


[Site "https://www.chess.com"]

[Event "Titled Tuesday Blitz January 17 Early 2023"]
[White "Tarasova, Viktoriya"]
[Black "Nikulina, Alena"]
[WhiteFideId "4175840"]
[BlackFideId "4172051"]
[WhiteElo "2226"]
[BlackElo "1857"]
[Result "1/2-1/2"]
[Round "07"]
[TimeControl "180+2"]
[Date "2023.01.17"]
[WhiteClock "0:00:06"]
[BlackClock "0:00:04"]

1. d4 {[%clk 0:02:57]}  e6 {[%clk 0:02:59]} 2. c4 {[%clk 0:02:55]}  d5 {[%clk 0:02:59]} 3. Nc3 {[%clk 0:02:55]}  Nf6 {[%clk 0:02:58]} 4. cxd5 {[%clk 0:02:53]}  exd5 {[%clk 0:02:58]} 5. Bg5 {[%clk 0:02:54]}  c6 {[%clk 0:02:59]} 6. Qc2 {[%clk 0:02:53]}  Be7 {[%clk 0:02:59]} 7. e3 {[%clk 0:02:54]}  O-O {[%clk 0:02:59]} 8. Bd3 {[%clk 0:02:54]}  Nbd7 {[%clk 0:02:58]} 9. Nge2 {[%clk 0:02:54]}  Re8 {[%clk 0:02:58]} 10. O-O {[%clk 0:02:54]}  h6 {[%clk 0:02:56]} 11. Bh4 {[%clk 0:02:53]}  Ne4 {[%clk 0:02:56]} 12. Bxe7 {[%clk 0:02:53]}  Qxe7 {[%clk 0:02:57]} 13. Bxe4 {[%clk 0:02:53]}  dxe4 {[%clk 0:02:57]} 14. Ng3 {[%clk 0:02:54]}  Nf6 {[%clk 0:02:54]} 15. Rae1 {[%clk 0:02:54]}  Bg4 {[%clk 0:02:38]} 16. f3 {[%clk 0:02:51]}  exf3 {[%clk 0:02:36]} 17. gxf3 {[%clk 0:02:50]}  Bh3 {[%clk 0:02:31]} 18. Rf2 {[%clk 0:02:51]}  Rad8 {[%clk 0:02:28]} 19. Rfe2 {[%clk 0:02:39]}  c5 {[%clk 0:02:14]} 20. dxc5 {[%clk 0:02:29]}  Qxc5 {[%clk 0:02:14]} 21. Nce4 {[%clk 0:02:30]}  Nxe4 {[%clk 0:02:08]} 22. Nxe4 {[%clk 0:02:24]}  Qh5 {[%clk 0:02:01]} 23. Rf2 {[%clk 0:02:00]}  Re6 {[%clk 0:01:33]} 24. Kh1 {[%clk 0:01:59]}  Rde8 {[%clk 0:01:28]} 25. Rg1 {[%clk 0:01:54]}  Bf5 {[%clk 0:01:20]} 26. Qc3 {[%clk 0:01:51]}  Rg6 {[%clk 0:01:13]} 27. Ng3 {[%clk 0:01:45]}  Qg5 {[%clk 0:00:59]} 28. e4 {[%clk 0:01:38]}  Bh3 {[%clk 0:00:57]} 29. f4 {[%clk 0:01:33]}  Qg4 {[%clk 0:00:54]} 30. Qd2 {[%clk 0:01:14]}  Rxe4 {[%clk 0:00:47]} 31. f5 {[%clk 0:01:09]}  Rg5 {[%clk 0:00:43]} 32. f6 {[%clk 0:01:00]}  Rd4 {[%clk 0:00:37]} 33. Qe3 {[%clk 0:00:55]}  Rd1 {[%clk 0:00:34]} 34. Re1 {[%clk 0:00:33]}  Rxe1+ {[%clk 0:00:30]} 35. Qxe1 {[%clk 0:00:33]}  Qd4 {[%clk 0:00:26]} 36. fxg7 {[%clk 0:00:29]}  Qd5+ {[%clk 0:00:25]} 37. Kg1 {[%clk 0:00:29]}  Qxa2 {[%clk 0:00:16]} 38. Rf3 {[%clk 0:00:11]}  Qxb2 {[%clk 0:00:12]} 39. Qe8+ {[%clk 0:00:11]}  Kh7 {[%clk 0:00:12]} 40. g8=Q+ {[%clk 0:00:09]}  Rxg8 {[%clk 0:00:11]} 41. Rxf7+ {[%clk 0:00:10]}  Rg7 {[%clk 0:00:11]} 42. Qe4+ {[%clk 0:00:09]}  Kh8 {[%clk 0:00:08]} 43. Rf8+ {[%clk 0:00:04]}  Rg8 {[%clk 0:00:07]} 44. Rxg8+ {[%clk 0:00:05]}  Kxg8 {[%clk 0:00:07]} 45. Qe8+ {[%clk 0:00:06]}  Kg7 {[%clk 0:00:06]} 46. Nh5+ {[%clk 0:00:05]}  Kh7 {[%clk 0:00:04]} 47. Qf7+ {[%clk 0:00:05]}  Kh8 {[%clk 0:00:03]} 48. Qf8+ {[%clk 0:00:06]}  Kh7 {[%clk 0:00:03]} 49. Qf7+ {[%clk 0:00:05]}  Kh8 {[%clk 0:00:04]} 50. Qf8+ {[%clk 0:00:05]}  Kh7 {[%clk 0:00:04]} 51. Qf7+ {[%clk 0:00:06]} 1/2-1/2


[Site "https://www.chess.com"]